fUSD/lending_fUSD_20251023
["ID","MTS","AMOUNT","RATE_DAILY","PERIOD"]
[392217111,1761259840606,-180.33258741,0.0003663,7]
[392217112,1761259840617,-230.18199034,0.0003663,7]
[392217113,1761259840626,-206.14529475,0.0003663,2]
[392217114,1761259840636,-74731.6303867,0.0003663,2]
[392217115,1761259840646,-151.0,0.00036633,30]
[392217116,1761259840656,-151.0,0.00036633,30]
[392217117,1761259840669,-151.0,0.00036633,30]
[392217118,1761259840679,-151.0,0.00036633,30]
[392217119,1761259840689,-303.844434,0.00036633,30]
[392217120,1761259840698,-303.844434,0.00036633,30]
[392217121,1761259840709,-151.0,0.00036633,30]
[392217122,1761259840719,-303.844434,0.00036633,30]
[392217123,1761259840728,-151.0,0.00036633,30]
[392217124,1761259840738,-303.844434,0.00036633,30]
[392217125,1761259840747,-303.844434,0.00036633,30]
[392217126,1761259840756,-303.844434,0.00036633,30]
[392217127,1761259840766,-162.133281,0.00036633,30]
[392217128,1761259840775,-303.844434,0.00036633,30]
[392217129,1761259840785,-303.844434,0.00036633,30]
[392217130,1761259840794,-151.0,0.00036633,30]
[392217131,1761259840803,-151.0,0.00036633,30]
[392217132,1761259840813,-151.0,0.00036633,30]
[392217133,1761259840822,-151.0,0.00036633,30]
[392217134,1761259840831,-151.0,0.00036633,30]
[392217135,1761259840841,-151.0,0.00036633,30]
[392217136,1761259840851,-151.0,0.00036633,30]
[392217137,1761259840860,-177.932608,0.00036633,30]
[392217138,1761259840870,-186.106296,0.00036633,30]
[392217139,1761259840880,-186.106296,0.00036633,30]
[392217140,1761259840889,-151.0,0.00036633,30]
[392217141,1761259840900,-186.106296,0.00036633,30]
[392217142,1761259840909,-186.106296,0.00036633,30]
[392217143,1761259840919,-153.454905,0.00036633,30]
[392217144,1761259840928,-186.106296,0.00036633,30]
[392217145,1761259840938,-186.106296,0.00036633,30]
[392217146,1761259840948,-186.106296,0.00036633,30]
[392217147,1761259840957,-186.106296,0.00036633,30]
[392217148,1761259840967,-151.0,0.00036633,30]
[392217149,1761259840976,-151.0,0.00036633,30]
[392217150,1761259840986,-151.0,0.00036633,30]
[392217151,1761259840995,-151.0,0.00036633,30]
[392217152,1761259841006,-151.0,0.00036633,30]
[392217153,1761259841015,-296.729128,0.00036633,30]
[392217154,1761259841025,-151.0,0.00036633,30]
[392217155,1761259841036,-283.770706,0.00036633,30]
[392217156,1761259841047,-151.0,0.00036633,30]
[392217157,1761259841056,-151.0,0.00036633,30]
[392217158,1761259841067,-151.0,0.00036633,30]
[392217159,1761259841077,-151.0,0.00036633,30]
[392217160,1761259841087,-151.0,0.00036633,30]
[392217161,1761259841100,-151.0,0.00036633,30]
[392217162,1761259841110,-176.550067,0.00036633,30]
[392217163,1761259841119,-151.0,0.00036633,30]
[392217164,1761259841128,-447.407415,0.00036633,30]
[392217165,1761259841139,-447.407415,0.00036633,30]
[392217166,1761259841148,-150.0,0.00036633,30]
[392217167,1761259841158,-16512.97791923,0.00036633,2]
[392217168,1761259841312,-3561.25916609,0.00036633,2]
[392217169,1761259841431,-3300.0,0.00036633,2]
[392217170,1761259841503,-46995.96344229,0.00036633,2]
[392217171,1761259841518,-2767.74658285,0.00036633,2]
[392217188,1761259842933,-337.27249606,0.00036633,30]
[392217189,1761259842948,-110.13491894,0.00036633,30]
[392217190,1761259842958,-447.407415,0.00036633,30]
[392217191,1761259842968,-447.407415,0.00036633,30]
[392217192,1761259842978,-447.407415,0.00036633,30]
[392217193,1761259842987,-7600.32127295,0.00036633,2]
[392217194,1761259845109,500.0,0.00028677,2]
[392217195,1761259845162,500.0,0.00028677,2]
[392217196,1761259845212,350.0,0.00028677,2]
[392217201,1761259845590,-151.05,0.00035331,2]
[392217202,1761259845600,-151.0,0.00035501,2]
[392217203,1761259845609,-447.407415,0.00036633,30]
[392217204,1761259845619,-447.407415,0.00036633,30]
[392217205,1761259845629,-2529.23149765,0.00036633,2]
[392217206,1761259845640,-13871.0787377,0.00036633,2]
[392217209,1761259921943,171.47,0.00028826,2]
[392217210,1761259922993,500.0,0.00028677,2]
[392217211,1761259924247,500.0,0.00028677,2]
[392217212,1761259924341,500.0,0.00028677,2]
[392217213,1761259925143,500.0,0.00028677,2]
[392217214,1761259925450,500.0,0.00028677,2]
[392217215,1761259925502,500.0,0.00028677,2]
[392217216,1761259925573,242.65371575,0.00028677,2]
[392217217,1761260006943,-155.56368894,0.00024932,2]
[392217218,1761260009434,-335.50132868,0.00024932,2]
[392217219,1761260078868,-8.93498238,0.00024932,2]
[392217221,1761260186977,-258.0,0.00034506,3]
[392217222,1761260187000,-53.09266022,0.000352,2]
[392217223,1761260201910,-240.03024339,0.000352,2]
[392217224,1761260206275,-340.08663622,0.000352,2]
[392217225,1761260209269,-158.38295035,0.000352,2]
[392217226,1761260212795,-250.29,0.000352,2]
[392217227,1761260214596,-250.0,0.000352,2]
[392217228,1761260232352,-187.27479899,0.000352,2]
[392217229,1761260237622,-188.02723125,0.000352,2]
[392217230,1761260240361,-190.85460037,0.000352,2]
[392217231,1761260262572,-47.96087921,0.000352,2]
[392217232,1761260262593,-341.92854353,0.00035592,2]
[392217234,1761260264624,-329.77416487,0.00035592,2]
[392217235,1761260276895,-226.41022366,0.00035592,2]
[392217238,1761260321907,-151.0,0.00034108,2]
[392217239,1761260321932,-151.0,0.00034903,2]
[392217240,1761260321956,-195.0,0.00035248,120]
[392217241,1761260321982,-738.89,0.00035592,2]
[392217242,1761260324592,-186.59130588,0.00035592,2]
[392217243,1761260326744,-291.11182637,0.00035592,2]
[392217244,1761260336979,-336.34267382,0.00035592,2]
[392217245,1761260339805,-247.61503877,0.00035592,2]
[392217246,1761260342211,-191.14,0.00035592,2]
[392217247,1761260344503,-183.98771662,0.00035592,2]
[392217248,1761260348663,-244.74751123,0.00035592,2]
[392217249,1761260367494,-376.38543886,0.00035592,2]
[392217250,1761260369037,-240.08845454,0.00035592,2]
[392217251,1761260373575,-155.70831099,0.00035592,2]
[392217253,1761260375173,-156.68905104,0.00035592,2]
[392217254,1761260380003,-208.49587844,0.00035592,2]
[392217255,1761260396967,-151.0,0.00033893,2]
[392217256,1761260396990,-105.97513188,0.00035592,2]
[392217257,1761260400400,-161.63263787,0.00035592,2]
[392217258,1761260405278,-545.78975541,0.00035592,2]
[392217259,1761260407240,-195.62116896,0.00035592,2]
[392217261,1761260426977,-300.0,0.00035592,2]
[392217262,1761260428781,-133.18809932,0.00035592,2]
[392217263,1761260428805,-66.81190068,0.00035592,2]
[392217269,1761260502063,-151.0,0.00035592,2]
[392217270,1761260502089,-125.13964955,0.00035592,2]
[392217293,1761260546920,-25.86035045,0.00035592,2]
[392217294,1761260546945,-205.13,0.00035592,2]
[392217295,1761260549903,-515.97359416,0.00035592,2]
[392217347,1761260682551,-159.53,0.00032782,2]
[392217348,1761260682574,-24.45771662,0.00035556,2]
[392217368,1761260754084,-171.37810979,0.00035556,2]
[392217369,1761260754104,-150.0,0.00035556,2]
[392217370,1761260754125,-18.4415731,0.00035592,2]
[392217371,1761260754146,-300.0,0.00035595,7]
[392217372,1761260754165,-666.0,0.00035605,3]
[392217373,1761260754186,-397.49429689,0.0003606,2]
[392217374,1761260754207,-200.0,0.00036184,2]
[392217375,1761260754228,-400.0,0.00036265,3]
[392217376,1761260754249,-1600.0,0.00036265,3]
[392217377,1761260754274,-500.0,0.00036266,15]
[392217378,1761260754300,-500.0,0.00036266,15]
[392217379,1761260754325,-500.0,0.00036266,15]
[392217380,1761260754351,-500.0,0.00036266,15]
[392217381,1761260754374,-500.0,0.00036266,15]
[392217382,1761260754397,-500.0,0.00036266,15]
[392217383,1761260754420,-500.0,0.00036266,15]
[392217384,1761260754443,-500.0,0.00036266,15]
[392217385,1761260754466,-500.0,0.00036266,15]
[392217386,1761260754488,-500.0,0.00036266,15]
[392217387,1761260754514,-500.0,0.00036266,15]
[392217388,1761260754537,-500.0,0.00036266,15]
[392217389,1761260754560,-500.0,0.00036266,15]
[392217390,1761260754585,-500.0,0.00036266,15]
[392217391,1761260754608,-500.0,0.00036266,15]
[392217392,1761260754631,-500.0,0.00036266,15]
[392217393,1761260754655,-500.0,0.00036266,15]
[392217394,1761260754678,-282.08151023,0.00036266,15]
[392217395,1761260754701,-500.0,0.00036266,15]
[392217396,1761260754724,-500.0,0.00036266,15]
[392217397,1761260754748,-500.0,0.00036266,15]
[392217398,1761260754772,-500.0,0.00036266,15]
[392217399,1761260754798,-500.0,0.00036266,15]
[392217400,1761260754823,-500.0,0.00036266,15]
[392217401,1761260754849,-500.0,0.00036266,15]
[392217402,1761260754875,-500.0,0.00036266,15]
[392217403,1761260754903,-500.0,0.00036266,15]
[392217404,1761260755345,-500.0,0.00036266,15]
[392217405,1761260755371,-500.0,0.00036266,15]
[392217406,1761260755394,-600.0,0.00036266,15]
[392217407,1761260755421,-500.0,0.00036266,15]
[392217408,1761260755445,-500.0,0.00036266,15]
[392217409,1761260755468,-500.0,0.00036266,15]
[392217410,1761260755489,-600.0,0.00036266,2]
[392217411,1761260755516,-195.83582641,0.00036268,2]
[392217412,1761260755535,-195.83582641,0.00036268,2]
[392217413,1761260755555,-609.74890348,0.0003627,2]
[392217431,1761260769238,200.0,0.00025,2]
[392217432,1761260771008,-168.55973547,0.00035605,2]
[392217433,1761260787621,-229.71800161,0.00035605,2]
[392217435,1761260790033,-202.6364642,0.00035605,2]
[392217454,1761260832317,-218.09855118,0.00035605,2]
[392217470,1761261025311,-250.0,0.00035595,2]
[392217471,1761261025337,-299.48116592,0.00035605,2]
[392217473,1761261028857,-271.02027824,0.00035605,2]
[392217484,1761261031602,-266.03070622,0.00035605,2]
[392217485,1761261031718,-1968.63509716,0.00035605,2]
[392217486,1761261031728,-489.81,0.00035615,30]
[392217487,1761261031738,-183.98771662,0.0003617,2]
[392217488,1761261031750,-318.0,0.00036198,3]
[392217489,1761261031763,-800.0,0.00036198,3]
[392217490,1761261031773,-3244.96558623,0.00036199,2]
[392217491,1761261031785,-866.74004467,0.00036199,2]
[392217492,1761261031794,-931.3842942,0.00036199,2]
[392217493,1761261031804,-600.91420128,0.00036218,2]
[392217494,1761261031814,-500.0,0.00036269,15]
[392217495,1761261031824,-188.20815103,0.00036269,15]
[392217496,1761261031835,-500.0,0.00036269,15]
[392217497,1761261031844,-500.0,0.00036269,15]
[392217498,1761261031855,-500.0,0.00036269,15]
[392217499,1761261031865,-500.0,0.00036269,15]
[392217500,1761261031874,-500.0,0.00036269,15]
[392217501,1761261031884,-500.0,0.00036269,15]
[392217502,1761261031894,-499.99999999,0.00036269,15]
[392217503,1761261031903,-387.72581326,0.00036269,15]
[392217504,1761261031914,-500.0,0.00036269,15]
[392217505,1761261031924,-500.0,0.00036269,15]
[392217506,1761261031934,-500.0,0.00036269,15]
[392217507,1761261031945,-1587.29001228,0.0003627,2]
[392217508,1761261031955,-1883.83087,0.0003627,2]
[392217509,1761261031964,-1883.83087,0.0003627,2]
[392217510,1761261031974,-3092.01,0.00036273,2]
[392217511,1761261031983,-522.46311979,0.00036434,2]
[392217512,1761261031993,-277.35679052,0.00036512,2]
[392217513,1761261032002,-1000.0,0.0003653,120]
[392217514,1761261032011,-239.09941939,0.00036533,15]
[392217515,1761261032021,-259.15444079,0.00036533,15]
[392217516,1761261032030,-500.0,0.00036533,15]
[392217518,1761261032039,-192.61497198,0.00036533,15]
[392217519,1761261032049,-869.646,0.00036533,45]
[392217520,1761261032058,-4195.5666,0.00036534,2]
[392217521,1761261032068,-20695.10821792,0.00036534,2]
[392217522,1761261032084,-1542.65984972,0.00036534,2]
[392217523,1761261032095,-1093.5925,0.00036534,2]
[392217524,1761261032106,-3738.53558558,0.00036534,2]
[392217525,1761261032117,-652.17700844,0.00036534,2]
[392217526,1761261032132,-266.01873834,0.00036534,2]
[392217527,1761261032142,-1000.0,0.00036534,2]
[392217528,1761261032151,-2061.19724767,0.00036534,2]
[392217529,1761261032162,-1764.39511108,0.00036534,2]
[392217530,1761261032174,-427.455,0.00036534,2]
[392217531,1761261032238,-24.2331723,0.00036534,2]
[392217532,1761261032257,-658.25,0.00036534,2]
[392217533,1761261032268,-64.46946895,0.00036534,2]
[392217534,1761261032278,-273.94053105,0.00036534,2]
[392217535,1761261032290,-279.09706895,0.00036534,2]
[392217536,1761261032299,-529.29483127,0.00036534,2]
[392217537,1761261032310,-2500.0,0.00036548,2]
[392217538,1761261032319,-2663.15628857,0.00036548,2]
[392217605,1761261037605,-840.66531582,0.00036548,2]
[392217606,1761261037616,-490.91827686,0.00036548,8]
[392217607,1761261037630,-142.17796076,0.00036548,8]
[392217608,1761261037642,-166.32993521,0.00036548,11]
[392217609,1761261037651,-1850.14438082,0.00036548,2]
[392217610,1761261037661,-422.1063761,0.00036576,2]
[392217611,1761261037671,-322.6107,0.00036626,2]
[392217612,1761261037680,-200.0,0.00036626,2]
[392217613,1761261037692,-500.0,0.00036626,2]
[392217614,1761261037702,-500.0,0.00036626,2]
[392217615,1761261037711,-500.0,0.00036626,2]
[392217616,1761261037720,-500.0,0.00036626,2]
[392217617,1761261037730,-500.0,0.00036626,2]
[392217618,1761261037739,-285.5205634,0.00036626,2]
[392217619,1761261037758,-214.4794366,0.00036626,2]
[392217620,1761261037767,-127.68761551,0.00036626,2]
[392217621,1761261037778,-372.31238449,0.00036626,2]
[392217622,1761261037790,-500.0,0.00036626,2]
[392217623,1761261037799,-500.0,0.00036626,2]
[392217624,1761261037807,-500.0,0.00036626,2]
[392217625,1761261037815,-388.91274828,0.00036626,2]
[392217626,1761261037828,-111.08725172,0.00036626,2]
[392217627,1761261037838,-500.0,0.00036626,2]
[392217628,1761261037848,-500.0,0.00036626,2]
[392217629,1761261037859,-500.0,0.00036626,2]
[392217630,1761261037869,-500.0,0.00036626,2]
[392217631,1761261037878,-500.0,0.00036626,2]
[392217632,1761261037889,-500.0,0.00036626,2]
[392217633,1761261037899,-500.0,0.00036626,2]
[392217634,1761261037909,-500.0,0.00036626,2]
[392217635,1761261037918,-500.0,0.00036626,2]
[392217636,1761261037928,-500.0,0.00036626,2]
[392217637,1761261037937,-500.0,0.00036626,2]
[392217638,1761261037948,-721.12765535,0.00036626,2]
[392217639,1761261037957,-500.0,0.00036626,2]
[392217640,1761261037967,-500.0,0.00036626,2]
[392217641,1761261037976,-500.0,0.00036626,2]
[392217642,1761261037986,-500.0,0.00036626,2]
[392217643,1761261037996,-500.0,0.00036626,2]
[392217644,1761261038007,-500.0,0.00036626,2]
[392217645,1761261038017,-500.0,0.00036626,2]
[392217646,1761261038027,-500.0,0.00036626,2]
[392217647,1761261038036,-500.0,0.00036626,2]
[392217648,1761261038045,-500.0,0.00036626,2]
[392217649,1761261038055,-250.0,0.00036626,2]
[392217650,1761261038064,-500.0,0.00036626,2]
[392217651,1761261038073,-250.0,0.00036626,2]
[392217652,1761261038082,-250.0,0.00036626,2]
[392217653,1761261038092,-250.0,0.00036626,2]
[392217654,1761261038101,-250.0,0.00036626,2]
[392217655,1761261038111,-250.0,0.00036626,2]
[392217656,1761261038121,-250.0,0.00036626,2]
[392217657,1761261038131,-250.0,0.00036626,2]
[392217658,1761261038141,-250.0,0.00036626,2]
[392217659,1761261038150,-250.0,0.00036626,2]
[392217660,1761261038160,-250.0,0.00036626,2]
[392217661,1761261038170,-250.0,0.00036626,2]
[392217662,1761261038179,-157.52,0.00036626,14]
[392217663,1761261038189,-1111.7210798,0.0003663,2]
[392217664,1761261038200,-500.0,0.00036633,120]
[392217665,1761261038210,-500.0,0.00036633,120]
[392217666,1761261038220,-500.0,0.00036633,30]
[392217667,1761261038229,-500.0,0.00036633,120]
[392217668,1761261038239,-500.0,0.00036633,120]
[392217669,1761261038248,-500.0,0.00036633,120]
[392217670,1761261038258,-500.4,0.00036633,120]
[392217671,1761261038267,-500.0,0.00036633,120]
[392217672,1761261038277,-500.0,0.00036633,7]
[392217673,1761261038287,-500.0,0.00036633,7]
[392217674,1761261038296,-500.0,0.00036633,7]
[392217675,1761261038306,-500.0,0.00036633,7]
[392217676,1761261038316,-500.0,0.00036633,7]
[392217677,1761261038325,-500.0,0.00036633,7]
[392217678,1761261038335,-500.0,0.00036633,7]
[392217679,1761261038344,-500.0,0.00036633,7]
[392217680,1761261038354,-500.0,0.00036633,120]
[392217681,1761261038364,-1398.14401313,0.00036633,2]
[392217682,1761261038375,-485.68686687,0.00036633,2]
[392217683,1761261038385,-1883.83087,0.00036633,2]
[392217684,1761261038395,-1883.83087,0.00036633,2]
[392217685,1761261038404,-67.60102735,0.00036633,2]
[392217686,1761261038415,-944.96660644,0.00036633,2]
[392217687,1761261038467,-871.26324621,0.00036633,2]
[392217688,1761261038477,-151.0,0.00036634,30]
[392217689,1761261038487,-300.0,0.00036634,5]
[392217690,1761261038496,-300.0,0.00036634,5]
[392217691,1761261038506,-151.0,0.00036634,30]
[392217692,1761261038515,-151.0,0.00036634,30]
[392217693,1761261038525,-151.0,0.00036634,30]
[392217694,1761261038535,-151.0,0.00036634,30]
[392217695,1761261038544,-151.0,0.00036634,30]
[392217696,1761261038553,-151.0,0.00036634,30]
[392217697,1761261038563,-61.84367888,0.00036634,30]
[392217698,1761261038574,-89.15632112,0.00036634,30]
[392217699,1761261038584,-151.0,0.00036634,30]
[392217700,1761261038593,-152.930209,0.00036634,30]
[392217701,1761261038601,-125.89610988,0.00036634,30]
[392217702,1761261038613,-25.10389012,0.00036634,30]
[392217703,1761261038623,-157.91864,0.00036634,30]
[392217704,1761261038632,-153.708584,0.00036634,30]
[392217705,1761261038642,-151.0,0.00036634,30]
[392217706,1761261038651,-151.0,0.00036634,30]
[392217707,1761261038660,-151.0,0.00036634,30]
[392217708,1761261038670,-151.0,0.00036634,30]
[392217709,1761261038679,-155.251682,0.00036634,30]
[392217710,1761261038691,-151.0,0.00036634,30]
[392217711,1761261038701,-152.549496,0.00036634,30]
[392217712,1761261038711,-151.0,0.00036634,30]
[392217713,1761261038720,-151.0,0.00036634,30]
[392217714,1761261038731,-151.0,0.00036634,30]
[392217715,1761261038740,-151.0,0.00036634,30]
[392217716,1761261038750,-151.0,0.00036634,30]
[392217717,1761261038759,-151.0,0.00036634,30]
[392217718,1761261038770,-151.0,0.00036634,30]
[392217719,1761261038780,-151.0,0.00036634,30]
[392217720,1761261038789,-236.526497,0.00036634,30]
[392217721,1761261038798,-151.0,0.00036634,30]
[392217722,1761261038807,-208.047,0.00036647,2]
[392217723,1761261038817,-111098.68245543,0.00036648,2]
[392217724,1761261038909,-394.64707224,0.00036648,2]
[392217725,1761261038920,-443.5,0.00036648,2]
[392217726,1761261038939,-1733.86308309,0.00036648,2]
[392217727,1761261039015,-5314.35203336,0.00036648,2]
[392217729,1761261039789,-500.0,0.00036268,15]
[392217730,1761261039798,-50.4,0.00036268,15]
[392217731,1761261039810,-449.6,0.00036268,15]
[392217732,1761261039819,-594.93,0.00036268,15]
[392217733,1761261039830,-174.22637345,0.00036268,15]
[392217734,1761261039841,-325.77362655,0.00036268,15]
[392217735,1761261039852,-500.0,0.00036268,15]
[392217736,1761261039861,-500.0,0.00036268,15]
[392217737,1761261039872,-500.0,0.00036268,15]
[392217738,1761261039883,-500.0,0.00036268,15]
[392217739,1761261039892,-328.67478567,0.00036268,15]
[392217753,1761261040355,-1.6e-07,0.00036268,15]
[392217755,1761261040367,-171.32521417,0.00036268,15]
[392217757,1761261040377,-500.0,0.00036268,15]
[392217758,1761261040387,-500.0,0.00036268,15]
[392217759,1761261040396,-500.0,0.00036268,15]
[392217760,1761261040406,-3.0573758,0.00036268,15]
[392217761,1761261040425,-496.9426242,0.00036268,15]
[392217762,1761261040435,-869739.71496826,0.00036648,2]
[392217764,1761261041477,-16682.25961586,0.00036648,2]
[392217765,1761261041487,-2744.10257813,0.00036648,2]
[392217766,1761261041500,-219582.37685567,0.00036648,2]
[392217767,1761261041510,-153.58167845,0.00036648,2]
[392217768,1761261041519,-1702.62553106,0.00036648,2]
[392217769,1761261041529,-996.0563521,0.00036648,5]
[392217770,1761261041538,-252.88495386,0.00036648,2]
[392217771,1761261041547,-169.56665046,0.00036648,2]
[392217772,1761261041557,-500.0,0.00036648,2]
[392217773,1761261041566,-1005.16488066,0.00036648,2]
[392217774,1761261041575,-1280.29657953,0.00036648,2]
[392217775,1761261041584,-247.23434087,0.00036648,2]
[392217776,1761261041593,-1057.22910308,0.00036648,2]
[392217777,1761261041602,-600.0,0.00036648,5]
[392217778,1761261041611,-553.46387173,0.00036648,2]
[392217779,1761261041620,-9373.06441431,0.00036648,2]
[392217780,1761261041629,-1331.28237837,0.00036648,2]
[392217781,1761261041638,-3471.71218445,0.00036648,2]
[392217782,1761261041647,-2228.9890443,0.00036648,2]
[392217783,1761261041656,-23152.26740038,0.00036648,2]
[392217784,1761261041664,-758.72753568,0.00036648,2]
[392217785,1761261041673,-13020.73658942,0.00036648,2]
[392217786,1761261041683,-1948.20346017,0.00036648,2]
[392217787,1761261041700,-186.79944941,0.00036648,2]
[392217788,1761261041709,-5094.03213178,0.00036648,2]
[392217789,1761261041718,-16429.14095838,0.00036648,2]
[392217790,1761261041727,-643.0,0.00036648,2]
[392217791,1761261041738,-985.03343042,0.00036648,2]
[392217792,1761261041747,-19356.0031314,0.00036648,5]
[392217793,1761261041756,-581.57454563,0.00036648,2]
[392217794,1761261041768,-1862.70012963,0.00036648,2]
[392217795,1761261041777,-92151.06389907,0.00036648,2]
[392217796,1761261041789,-546.2,0.00036648,2]
[392217797,1761261041820,-2583.258792,0.00036648,2]
[392217798,1761261041832,-970.97999772,0.00036648,2]
[392217802,1761261043764,-3363.25274394,0.00036648,2]
[392217803,1761261043819,-9153.75461309,0.00036648,2]
[392217804,1761261043837,-777.81316573,0.00036648,2]
[392217817,1761261045804,-430.95412791,0.00036648,2]
[392217818,1761261045816,-533.9999989,0.00036648,2]
[392217819,1761261045959,-5342.8399161,0.00036648,2]
[392217982,1761261070281,-249.99999984,0.00036533,2]
[392217985,1761261074914,-347.31861138,0.00036533,2]
[392217987,1761261077026,-179.50218907,0.00036533,2]
[392217988,1761261084510,-309.71129971,0.00036533,2]
[392217989,1761261084533,-228.33516959,0.00036548,2]
[392217990,1761261084557,-55.33486704,0.00036548,15]
[392217991,1761261087907,-154.25091183,0.00036548,15]
[392217992,1761261099456,-300.0,0.00036268,15]
[392217993,1761261101203,-200.0,0.00036268,15]
[392217994,1761261101231,-100.0,0.00036268,15]
[392217995,1761261103480,-220.94830104,0.00036268,15]
[392217996,1761261106966,-179.05169896,0.00036268,15]
[392217997,1761261107001,-286.26434175,0.00036268,15]
[392217998,1761261109396,-188.40903968,0.00036268,15]
[392217999,1761261112309,-25.32661857,0.00036268,15]
[392218000,1761261112339,-269.55842526,0.00036268,15]
[392218001,1761261115201,-230.44157474,0.00036268,15]
[392218002,1761261115230,-38.13179334,0.00036268,15]
[392218003,1761261219486,-396.55695801,0.00031,15]
[392218004,1761261221627,-300.0,0.00031,15]
[392218005,1761261415765,-158.17,0.00031,30]
[392218006,1761261415796,-51.08953226,0.00032,15]
[392218007,1761261420427,-108.91046774,0.00032,15]
[392218008,1761261420456,-56.08536895,0.00032,15]
[392218009,1761261426544,399.32,0.00013699,2]
[392218010,1761261426707,399.32,0.00020187,2]
[392218011,1761261427832,-227.50934178,0.00026676,2]
[392218014,1761261444503,-171.81065822,0.00026676,2]
[392218015,1761261444530,-80.4590982,0.00032,15]
[392218016,1761261510823,-196.08,0.00031,15]
[392218017,1761261510847,-23.85553285,0.00032,15]
[392218018,1761261510872,-195.0,0.00032181,120]
[392218019,1761261510897,-28.31841615,0.00033165,2]
[392218020,1761261512264,-166.66,0.00033165,2]
[392218021,1761261517380,-202.71266976,0.00033165,2]
[392218022,1761261527233,190.15,0.00016712,2]
[392218023,1761261549607,-1.62891409,0.00033165,2]
[392218024,1761261549635,-228.82370114,0.00033633,120]
[392218025,1761261551239,-162.85036894,0.00033633,120]
[392218026,1761261564993,-178.92544117,0.00033633,120]
[392218027,1761261566920,-320.22266095,0.00033633,120]
[392218034,1761261610214,-183.0,0.00031,120]
[392218035,1761261610241,-7.38501043,0.00033633,120]
[392218044,1761261624497,-332.49889885,0.00033633,120]
[392218045,1761261624520,-47.9606325,0.000341,2]
[392218046,1761261669472,-202.0393675,0.000341,2]
[392218047,1761261669497,-53.04972219,0.000352,2]
[392218048,1761261672476,-166.70255021,0.000352,2]
[392218049,1761261678124,-30.2477276,0.000352,2]
[392218050,1761261678150,-122.51100725,0.000352,120]
[392218051,1761261679853,-72.48899275,0.000352,120]
[392218052,1761261679875,-108.84382394,0.000353,2]
[392218053,1761261729473,-225.91537771,0.000353,2]
[392218054,1761261732695,-159.37659103,0.000353,2]
[392218055,1761261759493,-287.79694137,0.000353,2]
[392218056,1761261768139,-251.73481479,0.000353,2]
[392218057,1761261790151,-166.66,0.00033653,30]
[392218058,1761261790177,-42.04089154,0.00034008,120]
[392218059,1761261792534,-129.10031466,0.00034008,120]
[392218060,1761261792558,-64.10117018,0.00034362,30]
[392218061,1761261798663,-102.55882982,0.00034362,30]
[392218062,1761261798688,-92.44117018,0.0003507,30]
[392218063,1761261801220,-74.21882982,0.0003507,30]
[392218064,1761261801246,-230.61194151,0.000353,2]
[392218065,1761261908043,48802.27501762,0.00015,2]
[392218066,1761261908070,5000.0,0.00015,2]
[392218067,1761261908093,5000.0,0.00015,2]
[392218068,1761261908116,2000.0,0.00015,2]
[392218069,1761261908140,2000.0,0.00015,2]
[392218070,1761261908163,2000.0,0.00015,2]
[392218071,1761261908186,1000.0,0.00015,2]
[392218072,1761261908217,321228.6425725,0.00015,2]
[392218073,1761261924557,-466.53472872,0.00021,2]
[392218074,1761261924786,321.59268532,0.000175,2]
[392218075,1761261929376,-400.0,0.00021,2]
[392218076,1761261931424,-167.1132101,0.00021,2]
[392218077,1761261933215,-253.03230876,0.00021,2]